[Event "Early-Titled-Tuesday-Blitz-February-27-2024"]
[Site "Chess.com"]
[Date "2024.02.27"]
[Round "3"]
[White "Rodalquilar"]
[Black "m_ezat"]
[Result "1-0"]
[WhiteElo "2785"]
[BlackElo "2510"]
[TimeControl "180+1"]
[EndTime "8:28:24 PST"]
[Termination "Rodalquilar won by checkmate"]

1. d4 {[%clk 0:03:00.9]} 1... Nf6 {[%clk 0:02:59.5]} 2. Nf3 {[%clk 0:03:01.3]}
2... g6 {[%clk 0:02:59.2]} 3. Bf4 {[%clk 0:03:01.4]} 3... Bg7 {[%clk 0:02:59.3]}
4. e3 {[%clk 0:03:02]} 4... O-O {[%clk 0:02:59]} 5. Be2 {[%clk 0:03:02.5]} 5...
d6 {[%clk 0:02:59.7]} 6. O-O {[%clk 0:03:02.9]} 6... Nfd7 {[%clk 0:03:00.5]} 7.
e4 {[%clk 0:03:02.7]} 7... e5 {[%clk 0:03:00]} 8. Bg5 {[%clk 0:03:03.2]} 8...
Qe8 {[%clk 0:02:45.8]} 9. Nc3 {[%clk 0:03:02.6]} 9... c6 {[%clk 0:02:33.2]} 10.
dxe5 {[%clk 0:03:00.9]} 10... dxe5 {[%clk 0:02:33.8]} 11. Qd6 {[%clk 0:02:59.8]}
11... f6 {[%clk 0:02:21.3]} 12. Be3 {[%clk 0:02:59.8]} 12... Kh8 {[%clk
0:02:03.6]} 13. a4 {[%clk 0:02:59.6]} 13... Rg8 {[%clk 0:01:30.6]} 14. Bc4
{[%clk 0:02:58.2]} 14... Bf8 {[%clk 0:01:26.3]} 15. Qd2 {[%clk 0:02:54.5]} 15...
Rg7 {[%clk 0:01:26.3]} 16. a5 {[%clk 0:02:47.3]} 16... Nc5 {[%clk 0:01:18.6]}
17. Rfd1 {[%clk 0:02:40.4]} 17... Bg4 {[%clk 0:01:16.8]} 18. Be2 {[%clk
0:02:25.2]} 18... Nbd7 {[%clk 0:01:12.7]} 19. h3 {[%clk 0:02:25]} 19... Bxf3
{[%clk 0:01:12.3]} 20. Bxf3 {[%clk 0:02:25.9]} 20... Ne6 {[%clk 0:01:11.8]} 21.
Ne2 {[%clk 0:02:22]} 21... Ndc5 {[%clk 0:01:08.4]} 22. b4 {[%clk 0:02:19.4]}
22... Na6 {[%clk 0:01:06]} 23. c3 {[%clk 0:02:18.8]} 23... Nac7 {[%clk
0:01:03.7]} 24. Qa2 {[%clk 0:02:15.4]} 24... f5 {[%clk 0:00:55.5]} 25. Bh6
{[%clk 0:01:53.4]} 25... Rd7 {[%clk 0:00:51.2]} 26. Bxf8 {[%clk 0:01:53.7]}
26... Nxf8 {[%clk 0:00:43.7]} 27. Ng3 {[%clk 0:01:50.4]} 27... f4 {[%clk
0:00:23.7]} 28. Nf1 {[%clk 0:01:50.7]} 28... Nfe6 {[%clk 0:00:23.7]} 29. Rxd7
{[%clk 0:01:46.7]} 29... Qxd7 {[%clk 0:00:23]} 30. Rd1 {[%clk 0:01:47.6]} 30...
Qe7 {[%clk 0:00:22.9]} 31. Be2 {[%clk 0:01:21.5]} 31... Rd8 {[%clk 0:00:22.3]}
32. Qc2 {[%clk 0:01:16.6]} 32... Rxd1 {[%clk 0:00:20.9]} 33. Qxd1 {[%clk
0:01:17.5]} 33... Qd8 {[%clk 0:00:21.1]} 34. Qb3 {[%clk 0:01:17.8]} 34... Qd6
{[%clk 0:00:21]} 35. Bc4 {[%clk 0:01:08.4]} 35... Kg7 {[%clk 0:00:20.9]} 36. Nh2
{[%clk 0:01:08.9]} 36... Ng5 {[%clk 0:00:19.3]} 37. Qc2 {[%clk 0:01:06.9]} 37...
h5 {[%clk 0:00:18.7]} 38. h4 {[%clk 0:01:07.2]} 38... Nh7 {[%clk 0:00:17.5]} 39.
Nf3 {[%clk 0:01:07]} 39... Nf6 {[%clk 0:00:16.6]} 40. Ng5 {[%clk 0:01:06.5]}
40... Ng4 {[%clk 0:00:16.8]} 41. Be2 {[%clk 0:00:49.1]} 41... Ne6 {[%clk
0:00:14.5]} 42. Nf3 {[%clk 0:00:39.8]} 42... Nf8 {[%clk 0:00:13.8]} 43. Ne1
{[%clk 0:00:40]} 43... Nd7 {[%clk 0:00:13.9]} 44. Nd3 {[%clk 0:00:40.1]} 44...
Ndf6 {[%clk 0:00:14]} 45. Bf3 {[%clk 0:00:32.3]} 45... Nd7 {[%clk 0:00:14.2]}
46. Qe2 {[%clk 0:00:31.8]} 46... Qe7 {[%clk 0:00:14.2]} 47. Bxg4 {[%clk
0:00:31.3]} 47... hxg4 {[%clk 0:00:14.9]} 48. Qxg4 {[%clk 0:00:31.7]} 48... Nf6
{[%clk 0:00:15.8]} 49. Qg5 {[%clk 0:00:31]} 49... Qd6 {[%clk 0:00:14.7]} 50.
Nxe5 {[%clk 0:00:21]} 50... Qd1+ {[%clk 0:00:14.5]} 51. Kh2 {[%clk 0:00:20.4]}
51... Qd6 {[%clk 0:00:12.1]} 52. Qxg6+ {[%clk 0:00:19.7]} 52... Kf8 {[%clk
0:00:12.9]} 53. Qf7# {[%clk 0:00:19.9]} 1-0

[Event "Early-Titled-Tuesday-Blitz-February-27-2024"]
[Site "Chess.com"]
[Date "2024.02.27"]
[Round "3"]
[White "nekotyanof"]
[Black "Kopytkin"]
[Result "1/2-1/2"]
[WhiteElo "2632"]
[BlackElo "2460"]
[TimeControl "180+1"]
[EndTime "8:28:27 PST"]
[Termination "Game drawn by repetition"]

1. e4 {[%clk 0:03:00.9]} 1... Nf6 {[%clk 0:02:55.4]} 2. e5 {[%clk 0:03:00.9]}
2... Nd5 {[%clk 0:02:55.2]} 3. c4 {[%clk 0:03:01.6]} 3... Nb6 {[%clk 0:02:55.2]}
4. d4 {[%clk 0:03:02.5]} 4... d6 {[%clk 0:02:55.5]} 5. f4 {[%clk 0:03:02.3]}
5... dxe5 {[%clk 0:02:55.8]} 6. fxe5 {[%clk 0:03:03.2]} 6... c5 {[%clk
0:02:56.3]} 7. d5 {[%clk 0:03:01.3]} 7... e6 {[%clk 0:02:56.8]} 8. Nc3 {[%clk
0:02:59.7]} 8... exd5 {[%clk 0:02:56.9]} 9. cxd5 {[%clk 0:02:59.6]} 9... c4
{[%clk 0:02:57.5]} 10. Nf3 {[%clk 0:02:54.8]} 10... Bc5 {[%clk 0:02:57.2]} 11.
Bxc4 {[%clk 0:02:53.5]} 11... O-O {[%clk 0:02:57.1]} 12. Bd3 {[%clk 0:02:52.1]}
12... Bg4 {[%clk 0:02:56]} 13. h3 {[%clk 0:02:39.4]} 13... Bh5 {[%clk
0:02:09.2]} 14. g4 {[%clk 0:02:29]} 14... Bg6 {[%clk 0:02:08.3]} 15. Bg5 {[%clk
0:02:25.5]} 15... f6 {[%clk 0:01:38.9]} 16. Bxg6 {[%clk 0:02:21.1]} 16... hxg6
{[%clk 0:01:14.3]} 17. Bh4 {[%clk 0:02:18.7]} 17... g5 {[%clk 0:01:11.3]} 18.
Bg3 {[%clk 0:02:16.1]} 18... fxe5 {[%clk 0:01:11.7]} 19. Qd3 {[%clk 0:01:27]}
19... Qf6 {[%clk 0:00:29.4]} 20. Nh2 {[%clk 0:01:25.5]} 20... Bf2+ {[%clk
0:00:27.4]} 21. Ke2 {[%clk 0:01:21.8]} 21... e4 {[%clk 0:00:23.2]} 22. Nxe4
{[%clk 0:00:59.1]} 22... Qxb2+ {[%clk 0:00:23]} 23. Qd2 {[%clk 0:00:57.3]} 23...
Qb5+ {[%clk 0:00:19.8]} 24. Qd3 {[%clk 0:00:56.1]} 24... Qxd3+ {[%clk
0:00:19.6]} 25. Kxd3 {[%clk 0:00:57]} 25... Bxg3 {[%clk 0:00:20.2]} 26. Nxg3
{[%clk 0:00:57.9]} 26... Nxd5 {[%clk 0:00:20.7]} 27. Rhf1 {[%clk 0:00:52.8]}
27... Nc6 {[%clk 0:00:20.8]} 28. Rae1 {[%clk 0:00:46.1]} 28... Nf4+ {[%clk
0:00:20.5]} 29. Kc3 {[%clk 0:00:44.5]} 29... Rac8 {[%clk 0:00:21]} 30. Kb2
{[%clk 0:00:43.8]} 30... Rfd8 {[%clk 0:00:21.9]} 31. Rd1 {[%clk 0:00:41.4]}
31... Ne5 {[%clk 0:00:19.8]} 32. Rxd8+ {[%clk 0:00:38.4]} 32... Rxd8 {[%clk
0:00:20.7]} 33. Nf3 {[%clk 0:00:38.2]} 33... Nxf3 {[%clk 0:00:20]} 34. Rxf3
{[%clk 0:00:39.1]} 34... Rd2+ {[%clk 0:00:20.2]} 35. Kb3 {[%clk 0:00:31.7]}
35... Rd3+ {[%clk 0:00:20.3]} 36. Rxd3 {[%clk 0:00:32]} 36... Nxd3 {[%clk
0:00:21.2]} 37. Ne4 {[%clk 0:00:32.6]} 37... Kf8 {[%clk 0:00:18.9]} 38. Nxg5
{[%clk 0:00:32.3]} 38... Nf2 {[%clk 0:00:18.9]} 39. Ne6+ {[%clk 0:00:22.4]}
39... Kg8 {[%clk 0:00:18]} 40. Ng5 {[%clk 0:00:13.4]} 40... Kf8 {[%clk
0:00:17.6]} 41. Ne6+ {[%clk 0:00:13.7]} 41... Kg8 {[%clk 0:00:17.6]} 42. Nf4
{[%clk 0:00:14.1]} 42... g5 {[%clk 0:00:17.2]} 43. Ne6 {[%clk 0:00:14.4]} 43...
Nxh3 {[%clk 0:00:17.5]} 44. Kc4 {[%clk 0:00:15.1]} 44... Kf7 {[%clk 0:00:17.9]}
45. Nd8+ {[%clk 0:00:15.8]} 45... Kf6 {[%clk 0:00:17.5]} 46. Nxb7 {[%clk
0:00:16.7]} 46... Nf2 {[%clk 0:00:17.8]} 47. a4 {[%clk 0:00:12.4]} 47... Nxg4
{[%clk 0:00:18.7]} 48. a5 {[%clk 0:00:13.3]} 48... Ne5+ {[%clk 0:00:18.4]} 49.
Kd5 {[%clk 0:00:13.6]} 49... g4 {[%clk 0:00:18.3]} 50. Nd6 {[%clk 0:00:13.1]}
50... Nd3 {[%clk 0:00:15.4]} 51. Kc4 {[%clk 0:00:12.5]} 51... Ne5+ {[%clk
0:00:15.3]} 52. Kd5 {[%clk 0:00:12.2]} 52... Nd3 {[%clk 0:00:15.6]} 53. Kc4
{[%clk 0:00:11.7]} 53... Ne5+ {[%clk 0:00:15.7]} 54. Kd5 {[%clk 0:00:12.4]}
1/2-1/2

[Event "Early-Titled-Tuesday-Blitz-February-27-2024"]
[Site "Chess.com"]
[Date "2024.02.27"]
[Round "3"]
[White "Misterfox120"]
[Black "sotochess"]
[Result "0-1"]
[WhiteElo "2446"]
[BlackElo "2632"]
[TimeControl "180+1"]
[EndTime "8:28:28 PST"]
[Termination "sotochess won by resignation"]

1. d4 {[%clk 0:03:00.9]} 1... Nf6 {[%clk 0:02:58.3]} 2. Bf4 {[%clk 0:03:00.4]}
2... d6 {[%clk 0:02:53.6]} 3. Nf3 {[%clk 0:02:58.2]} 3... g6 {[%clk 0:02:52.7]}
4. Nbd2 {[%clk 0:02:53.5]} 4... Bg7 {[%clk 0:02:51.3]} 5. e4 {[%clk 0:02:53.4]}
5... O-O {[%clk 0:02:50.6]} 6. c3 {[%clk 0:02:53]} 6... Nbd7 {[%clk 0:02:50]} 7.
Be2 {[%clk 0:02:51.9]} 7... b6 {[%clk 0:02:47.7]} 8. O-O {[%clk 0:02:48.7]} 8...
Bb7 {[%clk 0:02:47.5]} 9. Qc2 {[%clk 0:02:46.5]} 9... Nh5 {[%clk 0:02:46.7]} 10.
Bg5 {[%clk 0:02:42.4]} 10... h6 {[%clk 0:02:45.8]} 11. Bh4 {[%clk 0:02:26.9]}
11... g5 {[%clk 0:02:44.8]} 12. Bg3 {[%clk 0:02:26.2]} 12... Nxg3 {[%clk
0:02:37.2]} 13. hxg3 {[%clk 0:02:27.1]} 13... e6 {[%clk 0:02:37.2]} 14. a4
{[%clk 0:02:21.8]} 14... a6 {[%clk 0:02:35.9]} 15. b4 {[%clk 0:01:49.8]} 15...
c5 {[%clk 0:02:31.5]} 16. bxc5 {[%clk 0:01:48.1]} 16... bxc5 {[%clk 0:02:30.1]}
17. Rab1 {[%clk 0:01:47.8]} 17... Qc7 {[%clk 0:02:29.9]} 18. Nc4 {[%clk
0:01:38.5]} 18... cxd4 {[%clk 0:02:00.1]} 19. cxd4 {[%clk 0:01:39.4]} 19... Rac8
{[%clk 0:01:59.9]} 20. Rfc1 {[%clk 0:01:13.3]} 20... d5 {[%clk 0:01:49]} 21.
exd5 {[%clk 0:01:02.3]} 21... Bxd5 {[%clk 0:01:47.6]} 22. Qd2 {[%clk 0:00:45.9]}
22... Qa7 {[%clk 0:01:36.9]} 23. a5 {[%clk 0:00:34]} 23... Nf6 {[%clk
0:01:12.5]} 24. Nb6 {[%clk 0:00:23.5]} 24... Rcd8 {[%clk 0:01:07.8]} 25. Nxd5
{[%clk 0:00:19.6]} 25... Rxd5 {[%clk 0:01:06.1]} 26. Rb6 {[%clk 0:00:16.5]}
26... g4 {[%clk 0:01:04.5]} 27. Rxa6 {[%clk 0:00:12.4]} 27... Qd7 {[%clk
0:00:58.6]} 28. Nh4 {[%clk 0:00:04.7]} 28... Rxd4 {[%clk 0:00:58.5]} 29. Qe3
{[%clk 0:00:05.2]} 29... Rd5 {[%clk 0:00:51.4]} 30. Ra7 {[%clk 0:00:04.5]} 30...
Qd6 {[%clk 0:00:50.3]} 31. a6 {[%clk 0:00:04.8]} 31... Ra5 {[%clk 0:00:46.7]}
32. Qf4 {[%clk 0:00:04.6]} 32... Qa3 {[%clk 0:00:45.1]} 33. Rd1 {[%clk
0:00:01.7]} 33... Nd5 {[%clk 0:00:44.2]} 34. Qe4 {[%clk 0:00:02.1]} 34... Nc3
{[%clk 0:00:43.9]} 35. Qd3 {[%clk 0:00:01.9]} 35... Nxd1 {[%clk 0:00:42.5]} 36.
Qxd1 {[%clk 0:00:02.8]} 36... Qc5 {[%clk 0:00:41.2]} 37. Rb7 {[%clk 0:00:02.7]}
37... Ra1 {[%clk 0:00:40.9]} 38. Rb1 {[%clk 0:00:01.9]} 38... Rxb1 {[%clk
0:00:38.8]} 39. Qxb1 {[%clk 0:00:02.8]} 39... Bd4 {[%clk 0:00:38.2]} 40. Qf1
{[%clk 0:00:01.4]} 40... Qg5 {[%clk 0:00:37.8]} 41. Kh2 {[%clk 0:00:01.7]} 41...
Rc8 {[%clk 0:00:37]} 42. f4 {[%clk 0:00:01.9]} 42... gxf3 {[%clk 0:00:36.8]} 43.
Qxf3 {[%clk 0:00:02.4]} 43... Rc7 {[%clk 0:00:35.2]} 44. Bd3 {[%clk 0:00:02.7]}
44... Kg7 {[%clk 0:00:34.8]} 45. Qe4 {[%clk 0:00:03.2]} 45... Be5 {[%clk
0:00:34.1]} 46. Qh7+ {[%clk 0:00:03.4]} 46... Kf6 {[%clk 0:00:34.1]} 47. Qe4
{[%clk 0:00:03.6]} 47... Qxg3+ {[%clk 0:00:33.4]} 48. Kg1 {[%clk 0:00:04.4]}
48... Rc1+ {[%clk 0:00:31.4]} 49. Bf1 {[%clk 0:00:05]} 49... Qf4 {[%clk
0:00:31.3]} 50. Qxf4+ {[%clk 0:00:04.9]} 50... Bxf4 {[%clk 0:00:31.3]} 51. Kf2
{[%clk 0:00:04.1]} 51... Bb8 {[%clk 0:00:30.6]} 52. Nf3 {[%clk 0:00:04.5]} 52...
Ba7+ {[%clk 0:00:31.5]} 53. Ke2 {[%clk 0:00:03]} 53... Ra1 {[%clk 0:00:31]} 54.
Kd2 {[%clk 0:00:03.2]} 0-1

[Event "Early-Titled-Tuesday-Blitz-February-27-2024"]
[Site "Chess.com"]
[Date "2024.02.27"]
[Round "3"]
[White "hakanazeri2"]
[Black "javirec"]
[Result "1-0"]
[WhiteElo "2616"]
[BlackElo "2303"]
[TimeControl "180+1"]
[EndTime "8:28:28 PST"]
[Termination "hakanazeri2 won on time"]

1. Nf3 {[%clk 0:02:50.5]} 1... Nf6 {[%clk 0:02:56.6]} 2. c4 {[%clk 0:02:39.9]}
2... d6 {[%clk 0:02:55.2]} 3. Nc3 {[%clk 0:02:39.4]} 3... e5 {[%clk 0:02:51.3]}
4. g3 {[%clk 0:02:39.8]} 4... g6 {[%clk 0:02:46.1]} 5. Bg2 {[%clk 0:02:39.3]}
5... Bg7 {[%clk 0:02:46.2]} 6. O-O {[%clk 0:02:39.7]} 6... O-O {[%clk
0:02:46.3]} 7. d4 {[%clk 0:02:40.2]} 7... Nbd7 {[%clk 0:02:25.1]} 8. b3 {[%clk
0:02:39.1]} 8... Re8 {[%clk 0:02:21.5]} 9. dxe5 {[%clk 0:02:37.8]} 9... dxe5
{[%clk 0:02:20.8]} 10. Bb2 {[%clk 0:02:38.1]} 10... e4 {[%clk 0:02:18.2]} 11.
Nd4 {[%clk 0:02:35.8]} 11... a6 {[%clk 0:02:18]} 12. e3 {[%clk 0:02:27.3]} 12...
c5 {[%clk 0:02:14.9]} 13. Nde2 {[%clk 0:02:25.3]} 13... Ne5 {[%clk 0:02:06.1]}
14. Qxd8 {[%clk 0:02:20.1]} 14... Rxd8 {[%clk 0:02:02.2]} 15. Nxe4 {[%clk
0:02:20]} 15... Nxe4 {[%clk 0:02:00]} 16. Bxe4 {[%clk 0:02:20.6]} 16... Rd2
{[%clk 0:01:50.5]} 17. Bxe5 {[%clk 0:02:15.2]} 17... Bxe5 {[%clk 0:01:45.8]} 18.
Rae1 {[%clk 0:02:15.6]} 18... Bh3 {[%clk 0:01:34.6]} 19. Bg2 {[%clk 0:02:14.3]}
19... Bxg2 {[%clk 0:01:34.4]} 20. Kxg2 {[%clk 0:02:15.2]} 20... Rxa2 {[%clk
0:01:27.7]} 21. Nf4 {[%clk 0:02:04.6]} 21... Bxf4 {[%clk 0:01:23.1]} 22. exf4
{[%clk 0:02:04.8]} 22... Kf8 {[%clk 0:01:22.5]} 23. Re5 {[%clk 0:02:03.6]} 23...
b6 {[%clk 0:01:17.8]} 24. Rd1 {[%clk 0:02:03.5]} 24... Re8 {[%clk 0:01:12.8]}
25. Rd6 {[%clk 0:01:59.6]} 25... Rxe5 {[%clk 0:01:04.6]} 26. fxe5 {[%clk
0:02:00.5]} 26... b5 {[%clk 0:01:04.8]} 27. Rc6 {[%clk 0:01:36.6]} 27... bxc4
{[%clk 0:01:03.2]} 28. bxc4 {[%clk 0:01:36.2]} 28... Ke7 {[%clk 0:00:59]} 29.
Rxc5 {[%clk 0:01:34.8]} 29... Ke6 {[%clk 0:00:56.8]} 30. Kf3 {[%clk 0:01:33.2]}
30... h5 {[%clk 0:00:55.2]} 31. Ke3 {[%clk 0:01:33.2]} 31... a5 {[%clk
0:00:44.8]} 32. h3 {[%clk 0:01:30.9]} 32... a4 {[%clk 0:00:43.8]} 33. f4 {[%clk
0:01:31.2]} 33... Rg2 {[%clk 0:00:35.4]} 34. Rc6+ {[%clk 0:01:18.5]} 34... Ke7
{[%clk 0:00:28.5]} 35. Kf3 {[%clk 0:01:16.3]} 35... Rc2 {[%clk 0:00:26.5]} 36.
c5 {[%clk 0:01:08.4]} 36... a3 {[%clk 0:00:25.7]} 37. Ra6 {[%clk 0:01:08.4]}
37... Rxc5 {[%clk 0:00:15.6]} 38. Rxa3 {[%clk 0:01:08.2]} 38... Rc4 {[%clk
0:00:15.1]} 39. Ra7+ {[%clk 0:01:06.9]} 39... Ke6 {[%clk 0:00:13.7]} 40. Ra6+
{[%clk 0:01:06.9]} 40... Ke7 {[%clk 0:00:13.3]} 41. Ra3 {[%clk 0:01:03.5]} 41...
Rb4 {[%clk 0:00:13.2]} 42. g4 {[%clk 0:01:03]} 42... hxg4+ {[%clk 0:00:12.9]}
43. Kxg4 {[%clk 0:01:03.9]} 43... Rb1 {[%clk 0:00:10.8]} 44. h4 {[%clk
0:01:02.9]} 44... Rg1+ {[%clk 0:00:09.8]} 45. Rg3 {[%clk 0:01:03.3]} 45... Rf1
{[%clk 0:00:07.5]} 46. Kg5 {[%clk 0:01:03]} 46... Ke6 {[%clk 0:00:07.2]} 47. Rg2
{[%clk 0:00:53.2]} 47... Rf3 {[%clk 0:00:07.1]} 48. Re2 {[%clk 0:00:47.7]} 48...
Rg3+ {[%clk 0:00:05.9]} 49. Kh6 {[%clk 0:00:47.8]} 49... Kf5 {[%clk 0:00:05.1]}
50. Kg7 {[%clk 0:00:47.4]} 50... Ke6 {[%clk 0:00:02.5]} 51. Rd2 {[%clk
0:00:47.2]} 51... Rg4 {[%clk 0:00:02.4]} 52. Rd6+ {[%clk 0:00:47.2]} 52... Ke7
{[%clk 0:00:02.3]} 53. Rf6 {[%clk 0:00:47.5]} 53... Rxh4 {[%clk 0:00:02.6]} 54.
Rxf7+ {[%clk 0:00:48.1]} 54... Ke6 {[%clk 0:00:02.9]} 55. Rf6+ {[%clk
0:00:46.6]} 55... Ke7 {[%clk 0:00:01.8]} 56. Kxg6 {[%clk 0:00:46.9]} 56... Rg4+
{[%clk 0:00:01.9]} 57. Kf5 {[%clk 0:00:47.4]} 57... Rg8 {[%clk 0:00:02.6]} 58.
Ra6 {[%clk 0:00:47.7]} 1-0

[Event "Early-Titled-Tuesday-Blitz-February-27-2024"]
[Site "Chess.com"]
[Date "2024.02.27"]
[Round "3"]
[White "vladgoncharov"]
[Black "Atousa"]
[Result "1/2-1/2"]
[WhiteElo "2652"]
[BlackElo "2470"]
[TimeControl "180+1"]
[EndTime "8:28:29 PST"]
[Termination "Game drawn by agreement"]

1. d4 {[%clk 0:03:00.9]} 1... Nf6 {[%clk 0:02:23.5]} 2. c4 {[%clk 0:02:59.8]}
2... e6 {[%clk 0:02:14.9]} 3. Nc3 {[%clk 0:02:58.6]} 3... Bb4 {[%clk 0:02:14.8]}
4. e3 {[%clk 0:02:58.5]} 4... O-O {[%clk 0:02:14.4]} 5. Bd3 {[%clk 0:02:57]}
5... d5 {[%clk 0:02:14.6]} 6. Ne2 {[%clk 0:02:56.3]} 6... dxc4 {[%clk
0:02:14.8]} 7. Bxc4 {[%clk 0:02:56.1]} 7... c5 {[%clk 0:02:15.5]} 8. O-O {[%clk
0:02:53.3]} 8... a6 {[%clk 0:02:16]} 9. Bd3 {[%clk 0:02:33.3]} 9... Nbd7 {[%clk
0:02:12.4]} 10. a3 {[%clk 0:02:33]} 10... Ba5 {[%clk 0:02:12.4]} 11. Qc2 {[%clk
0:02:23.6]} 11... cxd4 {[%clk 0:02:03]} 12. exd4 {[%clk 0:02:20.6]} 12... h6
{[%clk 0:01:54.5]} 13. Rd1 {[%clk 0:02:11.5]} 13... Bc7 {[%clk 0:01:49.7]} 14.
Ng3 {[%clk 0:02:08.5]} 14... Nb6 {[%clk 0:01:32.8]} 15. Qe2 {[%clk 0:01:46.2]}
15... Bd7 {[%clk 0:01:19.6]} 16. Nge4 {[%clk 0:01:40.5]} 16... Bc6 {[%clk
0:01:12]} 17. Bc2 {[%clk 0:01:34.9]} 17... Nbd5 {[%clk 0:01:05.6]} 18. Qf3
{[%clk 0:01:17.8]} 18... Nxc3 {[%clk 0:00:58.6]} 19. bxc3 {[%clk 0:01:16.9]}
19... Nxe4 {[%clk 0:00:57.3]} 20. Bxe4 {[%clk 0:01:16.4]} 20... Qh4 {[%clk
0:00:54.9]} 21. Bxc6 {[%clk 0:01:11.3]} 21... Qxh2+ {[%clk 0:00:54.5]} 22. Kf1
{[%clk 0:01:11.6]} 22... bxc6 {[%clk 0:00:53]} 23. Qxc6 {[%clk 0:01:08.1]} 23...
Rac8 {[%clk 0:00:48.3]} 24. Qf3 {[%clk 0:01:05.1]} 24... e5 {[%clk 0:00:38.4]}
25. Qh3 {[%clk 0:00:56.8]} 25... Qxh3 {[%clk 0:00:33.5]} 26. gxh3 {[%clk
0:00:55.8]} 26... exd4 {[%clk 0:00:34.1]} 27. cxd4 {[%clk 0:00:55.7]} 27... Rfd8
{[%clk 0:00:32.7]} 28. Be3 {[%clk 0:00:54.8]} 28... Bd6 {[%clk 0:00:31.3]} 29.
Rd3 {[%clk 0:00:53]} 29... Rc2 {[%clk 0:00:28.5]} 30. Rc1 {[%clk 0:00:46.7]}
30... Rdc8 {[%clk 0:00:26.6]} 31. Rxc2 {[%clk 0:00:45.7]} 31... Rxc2 {[%clk
0:00:27.5]} 32. Rb3 {[%clk 0:00:42.7]} 32... Ra2 {[%clk 0:00:26.9]} 33. Rb6
{[%clk 0:00:42.2]} 33... Bxa3 {[%clk 0:00:23.2]} 34. Rxa6 {[%clk 0:00:41.7]}
34... Ra1+ {[%clk 0:00:23.8]} 35. Ke2 {[%clk 0:00:41.3]} 35... Bb2 {[%clk
0:00:24.7]} 36. Rxa1 {[%clk 0:00:40.2]} 36... Bxa1 {[%clk 0:00:24.7]} 37. Kd3
{[%clk 0:00:37.4]} 37... Kf8 {[%clk 0:00:22.2]} 38. Kc4 {[%clk 0:00:34.5]} 38...
Ke7 {[%clk 0:00:22.2]} 39. Kd5 {[%clk 0:00:34.5]} 39... Kd7 {[%clk 0:00:21.4]}
40. Bd2 {[%clk 0:00:33.9]} 40... Bb2 {[%clk 0:00:20.4]} 41. Bb4 {[%clk
0:00:33.8]} 41... h5 {[%clk 0:00:19.7]} 42. Bf8 {[%clk 0:00:33]} 42... g6 {[%clk
0:00:19.5]} 43. Bg7 {[%clk 0:00:33]} 43... Bc1 {[%clk 0:00:18.8]} 44. Be5 {[%clk
0:00:31.7]} 44... Bg5 {[%clk 0:00:18.5]} 45. Ke4 {[%clk 0:00:31.2]} 45... Bd8
{[%clk 0:00:17.8]} 46. Kd5 {[%clk 0:00:20.5]} 46... Bh4 {[%clk 0:00:17.7]} 47.
f3 {[%clk 0:00:20.1]} 47... Bd8 {[%clk 0:00:17.8]} 48. Bd6 {[%clk 0:00:20.1]}
48... Ba5 {[%clk 0:00:17.6]} 49. Be5 {[%clk 0:00:20.2]} 49... Bc3 {[%clk
0:00:17.8]} 50. Bf6 {[%clk 0:00:19.5]} 50... Ba5 {[%clk 0:00:17.3]} 51. Be5
{[%clk 0:00:19.7]} 51... Bd8 {[%clk 0:00:17.4]} 52. Bf4 {[%clk 0:00:19.5]} 52...
Be7 {[%clk 0:00:17.7]} 53. Be3 {[%clk 0:00:19.7]} 53... Bh4 {[%clk 0:00:17.7]}
54. Bd2 {[%clk 0:00:19.7]} 54... Bg3 {[%clk 0:00:18]} 55. Bb4 {[%clk 0:00:19.8]}
55... Bc7 {[%clk 0:00:17.6]} 56. Bd2 {[%clk 0:00:19.8]} 56... Bg3 {[%clk
0:00:17.1]} 57. Be3 {[%clk 0:00:19.9]} 57... Bc7 {[%clk 0:00:17.1]} 58. Bd2
{[%clk 0:00:17.9]} 1/2-1/2

[Event "Early-Titled-Tuesday-Blitz-February-27-2024"]
[Site "Chess.com"]
[Date "2024.02.27"]
[Round "3"]
[White "AlainBruxelles"]
[Black "Fumitoks"]
[Result "0-1"]
[WhiteElo "2435"]
[BlackElo "2618"]
[TimeControl "180+1"]
[EndTime "8:28:30 PST"]
[Termination "Fumitoks won on time"]

1. e4 {[%clk 0:03:00.9]} 1... c5 {[%clk 0:02:59.7]} 2. Nf3 {[%clk 0:03:00.2]}
2... d6 {[%clk 0:03:00.3]} 3. d4 {[%clk 0:02:59.7]} 3... cxd4 {[%clk 0:03:01.2]}
4. Nxd4 {[%clk 0:03:00.1]} 4... Nf6 {[%clk 0:03:01.9]} 5. Nc3 {[%clk 0:02:59.6]}
5... a6 {[%clk 0:03:02.5]} 6. Bg5 {[%clk 0:02:56.9]} 6... Nbd7 {[%clk
0:03:02.6]} 7. f4 {[%clk 0:02:56.5]} 7... b5 {[%clk 0:03:02.9]} 8. Bd3 {[%clk
0:02:49.1]} 8... Bb7 {[%clk 0:03:02.4]} 9. Qe2 {[%clk 0:02:48.1]} 9... h6 {[%clk
0:02:50.6]} 10. Bh4 {[%clk 0:02:45.8]} 10... g5 {[%clk 0:02:43.7]} 11. fxg5
{[%clk 0:02:37.8]} 11... hxg5 {[%clk 0:02:44.6]} 12. Bxg5 {[%clk 0:02:35]} 12...
b4 {[%clk 0:02:42.5]} 13. Na4 {[%clk 0:02:18.9]} 13... Qa5 {[%clk 0:02:39.9]}
14. Bxf6 {[%clk 0:02:12.7]} 14... Nxf6 {[%clk 0:02:40.8]} 15. b3 {[%clk
0:02:11.4]} 15... Qe5 {[%clk 0:02:18.3]} 16. Rd1 {[%clk 0:02:10.4]} 16... Rxh2
{[%clk 0:02:09]} 17. Rxh2 {[%clk 0:02:09.3]} 17... Qxh2 {[%clk 0:02:09.9]} 18.
Bb5+ {[%clk 0:01:56.6]} 18... Kd8 {[%clk 0:01:58.1]} 19. Bc6 {[%clk 0:01:47.6]}
19... Qg3+ {[%clk 0:01:49.8]} 20. Kf1 {[%clk 0:01:46.2]} 20... Bxc6 {[%clk
0:01:02.9]} 21. Nxc6+ {[%clk 0:01:44]} 21... Ke8 {[%clk 0:01:02.2]} 22. Nb6
{[%clk 0:01:30.5]} 22... Ng4 {[%clk 0:00:36.3]} 23. Rd3 {[%clk 0:01:22.7]} 23...
Qf4+ {[%clk 0:00:32.1]} 24. Ke1 {[%clk 0:01:09.4]} 24... Bg7 {[%clk 0:00:24.4]}
25. Nxa8 {[%clk 0:01:00.8]} 25... Bc3+ {[%clk 0:00:24.6]} 26. Rxc3 {[%clk
0:01:01.2]} 26... bxc3 {[%clk 0:00:25.5]} 27. Nb4 {[%clk 0:00:37.2]} 27... Qc1+
{[%clk 0:00:23.8]} 28. Qd1 {[%clk 0:00:37.5]} 28... Qe3+ {[%clk 0:00:23.6]} 29.
Qe2 {[%clk 0:00:37.9]} 29... Qg1+ {[%clk 0:00:23.8]} 30. Qf1 {[%clk 0:00:38.1]}
30... Qd4 {[%clk 0:00:18.3]} 31. Qe2 {[%clk 0:00:34.4]} 31... Qxb4 {[%clk
0:00:15.8]} 32. Nc7+ {[%clk 0:00:32.9]} 32... Kd8 {[%clk 0:00:13.2]} 33. Nxa6
{[%clk 0:00:25.1]} 33... Qb6 {[%clk 0:00:13.5]} 34. a4 {[%clk 0:00:17.6]} 34...
Ne5 {[%clk 0:00:09.3]} 35. Kd1 {[%clk 0:00:12.7]} 35... Nc6 {[%clk 0:00:07.5]}
36. Kc1 {[%clk 0:00:10.5]} 36... Qg1+ {[%clk 0:00:03.8]} 37. Qd1 {[%clk
0:00:10.4]} 37... Qxg2 {[%clk 0:00:02.9]} 38. Kb1 {[%clk 0:00:06.5]} 38... Qxe4
{[%clk 0:00:03]} 39. Qh5 {[%clk 0:00:04.7]} 39... Nb4 {[%clk 0:00:02.3]} 40.
Qh8+ {[%clk 0:00:02.9]} 40... Kd7 {[%clk 0:00:02.3]} 41. Qxc3 {[%clk 0:00:03.6]}
41... Nxa6 {[%clk 0:00:02.5]} 42. Qd2 {[%clk 0:00:01.6]} 42... Nc7 {[%clk
0:00:02.9]} 0-1